Workbook

Sheet Table rentabilité
B2: ETUDE RENTABILITE SOLUTIONS USAGE PRODUCTIF
B3: Pompe solaire_Bananeraie
B5: Dimmensionnement réel
B6: Dimmensionnement optimisé
B7: Dimmensionnement réel
B10: Cases à vérifier
B11: Cases à compléter
B12: Cases à laisser vides
B13: Cases calculées
B15: Caractéristiques techniques du Projet
B17: Usage Productif | C17: Rendement (kg/heure) | D17: Puissance (kW) | F17: Prix (FCFA) | G17: Energie consommée (KWh/j) | H17: Energie à produire (kWh/j) | I17: Fonctionnement optimal | K17: Coefficient déperdition (k)
D18: Projet | E18: Nominale | I18: heures par jour | J18: jours à l'année
B19: Pompe de surface (983,2Kg/m3) | C19: 380 | E19: 55 | F19: 5824300 | G19: =E19*I19 -> 330 | H19: =G19/K19 -> 412.5 | I19: 6 | J19: 365 | K19: 0.8
C24: Vitesse rotation | D24: Taille buse | E24: Graine ou poudre | F24: Energie (kWh) | G24: Quantité (Kg) | H24: Temps pressage (Min) | I24: Densité | J24: Teneur | L24: Rendement huile (L/kg)
J25: Huile | K25: Tourteaux
B30: Equipements facultatifs
B31: designation | C31: nombre | D31: prix
B32: cloture grillage | C32: 1 | D32: 2493750
B33: Genie civil (structures modules) | C33: 1 | D33: 3187500
B34: conditionneur d'energie + protection | C34: 1 | D34: 3252999
B35: accessoirs cablages + protection | C35: 1 | D35: 3128125
B36: ligne d'aspiration (PeHD) | C36: 1 | D36: 178000
B37: ligne de refoulement (PeHD) | C37: 1 | D37: 750000
B38: accessoirs pompe | C38: 1 | D38: 2231250
B40: Alimentation Solaire | C40: Puissance (kW) | D40: Prix (FCFA) | E40: Coefficient déperdition | F40: Tension (V) | H40: Batteries | I40: Capacité (Ampères/h) | J40: Prix (FCFA) | K40: Tension (V) | L40: Durée de vie* | M40: * en conditions optimales, annoncées constructeur
B41: Sharp ND-AC275 | C41: 0.275 | D41: 90000 | E41: 0.6 | F41: 24V | H41: Victron Energy Gel | I41: 220 | J41: 400000 | K41: 12 | L41: 10
B42: BlueSolar SPM-300-24 Monocristallin | C42: 0.3 | D42: 100000 | E42: 0.6 | F42: 24V | H42: Victron Energy Gel 2 | I42: 265 | K42: 12 | L42: 10
H43: Tension nécessaire système | I43: =IF(J43<0.5,12,IF(AND(J43>=0.5,J43<2),24,IF(J43>=2,48))) -> 48 | J43: =F85*INDEX(C:C,MATCH(F65,B:B,0)) -> 70.675
B45: Conditionneur | C45: kVa | D45: Prix (FCFA) | H45: Régulateur | J45: Prix (FCFA) | K45: Tension (V)
C46: 2 | D46: 450000 | H46: BlueSolar 150V 35A de Victron Energy | J46: 220000 | K46: 12V/24V/48V
B47: Xtender | H47: …
B49: Irradiation Solaire
B50: Month | C50: Jan | D50: Feb | E50: Mar | F50: Apr | G50: May | H50: Jun | I50: Jul | J50: Aug | K50: Sep | L50: Oct | M50: Nov | N50: Dec | O50: Year
B51: H(15)* | C51: 5.12 | D51: 5.75 | E51: 6.37 | F51: 6.61 | G51: 6.34 | H51: 6.05 | I51: 6.26 | J51: 5.51 | K51: 6.03 | L51: 5.81 | M51: 5.226 | N51: 5.03 | O51: =IF('Table rentabilité'!G75="x",MAX(C51:N51),IF('Table rentabilité'!G76="x",MIN(C51:N51),IF('Table rentabilité'!G77="x",AVERAGE(C51:N51),"erreur"))) -> 5.842166667
B53: Électricité du réseau | D53: 1ère Tranche | E53: 2ème Tranche | F53: 3ème Tranche | J53: 1ère Tranche | K53: 2ème Tranche | L53: 3ème Tranche | M53: Total
B54: UP-Petite Puissance | C54: Tranche (KWh) | D54: 50 | E54: 500 | F54: ∞ | H54: UP-Petite Puissance | I54: Energie par Tranche | J54: =(F80*30)-SUM(K54:L54) -> 50 | K54: =IF((F80*30)>D54,(F80*30)-D54-L54,0) -> 450 | L54: =IF((F80*30)>E54,(F80*30)-E54,0) -> 9400 | M54: =SUM(J54:L54) -> 9900
C55: Prix (KWh) | D55: 128.85 | E55: 135.68 | F55: 147.68 | I55: Coût (FCFA) | J55: =J54*D55 -> 6442.5 | K55: =K54*E55 -> 61056 | L55: =L54*F55 -> 1388192 | M55: =SUM(J55:L55) -> 1455690.5
B56: UP-Moyenne Puissance | C56: Tranche | D56: 100 | E56: 500 | F56: ∞ | H56: UP-Moyenne Puissance | I56: Energie par Tranche | J56: =(F80*30)-SUM(K56:L56) -> 100 | K56: =IF((F80*30)>D56,(F80*30)-D56-L56,0) -> 400 | L56: =IF((F80*30)>E56,(F80*30)-E56,0) -> 9400 | M56: 9900
C57: Prix (KWh) | D57: 129.81 | E57: 136.53 | F57: 149.24 | I57: Coût (FCFA) | J57: =J56*D57 -> 12981 | K57: =K56*E57 -> 54612 | L57: 1402856 | M57: 1470449
B59: Choix de dimensionnement du projet
B61: Production min. souhaitée (m3 d'eau/jour) | F61: =INDEX(C:C,MATCH($F$64,B:B,0))*INDEX(I:I,MATCH($F$64,B:B,0)) -> 2280 | G61: m3
B62: Temps de fonctionnement (heures) | F62: =I19 -> 6
B64: Choix de la pompes | F64: Pompe de surface (983,2Kg/m3)
B65: Choix de l'alimentation solaire | F65: Sharp ND-AC275
B66: Choix du système de stokage | F66: Victron Energy Gel
B67: Choix du conditionneur (onduleur) | F67: Vitron Energy Phoenix
B68: Choix décortiqueuse solaire
F69: Oui
F70: =IF(M55<M57,B54,B56) -> UP-Petite Puissance
B72: Autonomie nécessaires au projet (jours) | F72: 1
B73: Profondeur décharge batteries | F73: 0.7
B75: Choix du cas pour dimensionnement solaire | F75: best case
F76: worst case
F77: average | G77: x
B79: puissance equipement total majoré | F79: =E19*1.2 -> 66
B80: Energie journalière consommée (KWh) | F80: =G19+G20+G21+G22 -> 330 | G80: KWh
B81: Puissance crête projet (KW) | F81: =(INDEX(H:H,MATCH(F64,B:B,0))/O51) -> 70.60736599
B82: Capacité totale système stockage (Ampères/heure) | F82: =(G19+G20+G21)*1000*(F72)/(F73*I43) -> 9821.428571
B84: Nb de pompes | F84: =ROUNDUP(F61/(C19*I19),0) -> 1 | G84: unités
B85: Nb de panneaux solaires | F85: =ROUNDUP(F81/INDEX(C:C,MATCH(F65,B:B,0)),0) -> 257 | G85: unités | H85: =ARRONDI.SUP(F77/INDEX(C:C;EQUIV(F61;B:B;0));0)
B86: Nb de batteries en série | F86: =ROUNDUP(I43/INDEX(K:K,MATCH(F66,H:H,0)),0) -> 4 | G86: unités | H86: =ARRONDI.SUP(I37/INDEX(K:K;EQUIV(F62;H:H;0));0)
B87: Nb de batteries en dérivation | F87: 2 | G87: unités | H87: =ARRONDI.SUP(F78/INDEX(I:I;EQUIV(F62;H:H;0));0)
B88: Nb de batteries total | F88: =F86*F87 -> 8 | G88: unités
B89: Durée de vie attendue de la batterie | F89: =INDEX(L:L,MATCH(F66,H:H,0))*(130%-F73) -> 6 | G89: ans
B90: Nb conditionneur | F90: =IF(OR(I43=24,I43=12),1,2) -> 2 | G90: unités | H90: =SI(OU(I37=24;I37=12);1;2)
B91: Nb régulateurs | F91: 1 | G91: unités
B93: Ratio de fonctionnement | F93: 0.9
B94: Employés nécessaires pour fonctionnement | F94: 1 | G94: personnes
B95: Extrant annuel attendu en eau | F95: =INDEX(C:C,MATCH($F$64,B:B,0))*INDEX(J:J,MATCH($F$64,B:B,0))*F84*F93 -> 124830 | G95: m3
B96: Extrant annuel attendu en bananes | F96: =315 -> 315 | G96: Tonnes
B98: Calcul de charges variables et fixes
B100: CHARGES VARIABLES D'EXPLOITATION
B101: Désignation | C101: Quantité sacs de kg | E101: Prix unitaire | F101: Montant total/an | G101: Montant total/mois | I101: évolution annuelle charges d'exploitation | L101: 0.01
B102: engrais | C102: =71*4 -> 284 | E102: 9500 | F102: =E102*C102*L102 -> 1753700 | G102: =F102/12 -> 146141.6667 | I102: Part charges imputables au business de l'huile (Baobab)* | L102: 0.65
B103: salaires | C103: 1 | E103: 600600 | F103: =E103*C103 -> 600600 | G103: =F103/12 -> 50050 | I103: * La création de Bouye sera gérée par RaS, les charges sont donc réparties
B104: materiels vegetales | F104: =E104*C104 -> 0 | G104: =F104/12 -> 0 | I104: entre les 2 projets selon le poids de chaque transformation dans le revenu généré
B105: Entretien système d'irrigation | F105: =E105*C105 -> 0 | G105: 0
B106: fumier | C106: 71 | E106: 65000 | F106: =E106*C106 -> 4615000 | G106: 384583.3333
F107: =E107*C107*12 -> 0 | G107: 0
F108: =E108*C108*12 -> 0 | G108: 0 | I108: Avantage coût électricité PV vs. Réseau | K108: Sur 1 an | L108: =(MIN(M55,M57)*12)-G128 -> 14893499.4
F109: =E109*C109*12 -> 0 | G109: 0
B110: TOTAL (F CFA) | F110: =SUM(F102:F109) -> 6969300 | G110: =SUM(G102:G109) -> 580775 | K110: Sur 5 ans | L110: =(MIN(M55,M57)*12*5)-(G128*5) -> 74467496.98
K111: Sur 9 ans | L111: =(MIN(M55,M57)*12*9)-(G128*9) -> 134041494.6
B112: INVESTISSEMENTS
B113: Désignation | C113: Quantité | D113: Prix unitaire TTC | E113: Durée de vie (an) | F113: Montant Total TTC | G113: Amortissement annuel
B114: Pompe solaire (55 KW) | C114: =IF($B$5=INDEX($B$6:$B$7,1,1),F84,'investissement réel'!C4) -> 1 | D114: =IF($B$5=INDEX($B$6:$B$7,1,1),INDEX(F:F,MATCH(F64,B:B,0)),'investissement réel'!D4) -> 5824300 | E114: 10 | F114: =C114*D114 -> 5824300 | G114: =IFERROR(F114/E114,0) -> 582430
B115: accessoirs pompe | C115: =IF($B$5=INDEX($B$6:$B$7,1,1),C38,'investissement réel'!C5) -> 1 | D115: =IF($B$5=INDEX($B$6:$B$7,1,1),D38,'investissement réel'!D5) -> 2231250 | E115: 10 | F115: 2231250 | G115: 223125
B116: Champs solaire (81,9 KWc) | C116: =IF($B$5=INDEX($B$6:$B$7,1,1),F85,'investissement réel'!C6) -> 1 | D116: =IF($B$5=INDEX($B$6:$B$7,1,1),INDEX(D:D,MATCH(F65,B:B,0)),'investissement réel'!D6) -> 17541678 | E116: 25 | F116: =C116*D116 -> 17541678 | G116: =IFERROR(F116/E116,0) -> 701667.12
B117: cloture grillage | C117: =IF($B$5=INDEX($B$6:$B$7,1,1),C32,'investissement réel'!C7) -> 1 | D117: =IF($B$5=INDEX($B$6:$B$7,1,1),D32,'investissement réel'!D7) -> 2493750 | E117: 10 | F117: =C117*D117 -> 2493750 | G117: =IFERROR(F117/E117,0) -> 249375
B118: Genie civil (structures modules) | C118: =IF($B$5=INDEX($B$6:$B$7,1,1),C33,'investissement réel'!C8) -> 1 | D118: =IF($B$5=INDEX($B$6:$B$7,1,1),D33,'investissement réel'!D8) -> 3187500 | E118: 15 | F118: 3187500 | G118: 212500
B119: conditionneur d'energie + protection | C119: =IF($B$5=INDEX($B$6:$B$7,1,1),F90,'investissement réel'!C9) -> 1 | D119: =IF($B$5=INDEX($B$6:$B$7,1,1),D34,'investissement réel'!D9) -> 3252999 | E119: 10 | F119: 3252999 | G119: 325299.9
B120: accessoirs cablages + protection | C120: =IF($B$5=INDEX($B$6:$B$7,1,1),C35,'investissement réel'!C10) -> 1 | D120: =IF($B$5=INDEX($B$6:$B$7,1,1),D35,'investissement réel'!D10) -> 3340625 | E120: 15 | F120: 3340625 | G120: 222708.3333
B121: ligne d'aspiration (PeHD) | C121: =IF($B$5=INDEX($B$6:$B$7,1,1),C36,'investissement réel'!C11) -> 1 | D121: =IF($B$5=INDEX($B$6:$B$7,1,1),D36,'investissement réel'!D11) -> 193625 | E121: 20 | F121: 193625 | G121: 9681.25
B122: ligne de refoulement (PeHD) | C122: =IF($B$5=INDEX($B$6:$B$7,1,1),C37,'investissement réel'!C12) -> 1 | D122: =IF($B$5=INDEX($B$6:$B$7,1,1),D37,'investissement réel'!D12) -> 960000 | E122: 20 | F122: 960000 | G122: 48000
F123: 0 | G123: 0
F124: 0 | G124: 0
F125: 0 | G125: 0
E126: 0 | F126: 0 | G126: 0
E127: 0 | F127: 0 | G127: 0
B128: TOTAL (F CFA) | F128: =SUM(F114:F127) -> 39025727 | G128: =SUM(G114:G127) -> 2574786.603
B130: Calcul des recettes d'exploitation
B132: RECETTES D'EXPLOITATION
B133: Désignation | C133: Quantité | E133: Prix unitaire | F133: Recettes annuelles | G133: Recettes mensuelles | K133: 0.01
B134: cotisation producteur | C134: 71 | E134: 300300 | F134: =C134*E134 -> 21321300 | G134: =F134/12 -> 1776775
F135: =C135*E135 -> 0 | G135: =F135/12 -> 0
F136: =C136*E136 -> 0 | G136: 0
B137: TOTAL (F CFA) | F137: =SUM(F134:F136) -> 21321300 | G137: =SUM(G134:G136) -> 1776775
B139: Ressources et Financement des investissements
B141: BFR (Besoin en fonds de roulement)
B142: Type de tiers | C142: Client/fournisseur | D142: Délais de paiement / stocks (jours) | E142: Part des achats/ventes
B151: Créances clients | C151: =((D146*F137/365*E146)+(D147*F137/365*E147)) -> 0
B152: Crédit fournisseurs | C152: =((D143*F110*E143/365)+(D144*F110*E144/365)+(D145*F110*E145/365))*-1 -> 0
B153: Impact Stocks consommable | C153: =F102*D148/365 -> 0
B154: Impact Stocks produits finis | C154: =F134*D149/365 -> 0
B155: BFR | C155: =SUM(C151:C154) -> 0 | D155: F CFA
B158: SCHÉMA DE FINANCEMENT | F158: ECHEANCIER DE REMBOURSEMENT
B159: Désignation | C159: Part | D159: Montant total TTC | F159: Année | G159: Capital | H159: Intérêts | I159: Reste | J159: Annuité | K159: mensualité
B160: Investissements | D160: =F128 -> 39025727 | F160: =IF(D167>10,"nb an insuffisant",IF(D167>=1,1,"-")) -> 1 | G160: =SUMIFS('Remboursement Mensualités'!C$14:C$133,'Remboursement Mensualités'!$F$14:$F$133,'Table rentabilité'!$F160) -> 8789690.994 | H160: =SUMIFS('Remboursement Mensualités'!D$14:D$133,'Remboursement Mensualités'!$F$14:$F$133,'Table rentabilité'!$F160) -> 2377884.467 | I160: =SUMIFS('Remboursement Mensualités'!E$14:E$133,'Remboursement Mensualités'!$F$14:$F$133,'Table rentabilité'!$F160) -> 411766255.9 | J160: =SUMIFS('Remboursement Mensualités'!B$14:B$133,'Remboursement Mensualités'!$F$14:$F$133,'Table rentabilité'!$F160) -> 11167575.46 | K160: =J160/12 -> 930631.2884
B161: Besoin en fonds de roulement | D161: =C155 -> 0 | F161: =IF(D167>10,"nb an insuffisant",IF(D167>=2,2,"-")) -> 2 | G161: =SUMIFS('Remboursement Mensualités'!C$14:C$133,'Remboursement Mensualités'!$F$14:$F$133,'Table rentabilité'!$F161) -> 9404969.363 | H161: =SUMIFS('Remboursement Mensualités'!D$14:D$133,'Remboursement Mensualités'!$F$14:$F$133,'Table rentabilité'!$F161) -> 1762606.098 | I161: =SUMIFS('Remboursement Mensualités'!E$14:E$133,'Remboursement Mensualités'!$F$14:$F$133,'Table rentabilité'!$F161) -> 302331991.2 | J161: =SUMIFS('Remboursement Mensualités'!B$14:B$133,'Remboursement Mensualités'!$F$14:$F$133,'Table rentabilité'!$F161) -> 11167575.46 | K161: =J161/12 -> 930631.2884
B162: COÛT TOTAL (F CFA) | D162: =SUM(D160:D161) -> 39025727 | F162: =IF(D167>10,"nb an insuffisant",IF(D167>=3,3,"-")) -> 3 | G162: =SUMIFS('Remboursement Mensualités'!C$14:C$133,'Remboursement Mensualités'!$F$14:$F$133,'Table rentabilité'!$F162) -> 10063317.22 | H162: =SUMIFS('Remboursement Mensualités'!D$14:D$133,'Remboursement Mensualités'!$F$14:$F$133,'Table rentabilité'!$F162) -> 1104258.242 | I162: =SUMIFS('Remboursement Mensualités'!E$14:E$133,'Remboursement Mensualités'!$F$14:$F$133,'Table rentabilité'!$F162) -> 185237328 | J162: =SUMIFS('Remboursement Mensualités'!B$14:B$133,'Remboursement Mensualités'!$F$14:$F$133,'Table rentabilité'!$F162) -> 11167575.46 | K162: 930631.2884
B163: Apport personnel | C163: 0 | D163: =D162*C163 -> 0 | F163: =IF(D167>10,"nb an insuffisant",IF(D167>=4,4,"-")) -> 4 | G163: =SUMIFS('Remboursement Mensualités'!C$14:C$133,'Remboursement Mensualités'!$F$14:$F$133,'Table rentabilité'!$F163) -> 10767749.42 | H163: =SUMIFS('Remboursement Mensualités'!D$14:D$133,'Remboursement Mensualités'!$F$14:$F$133,'Table rentabilité'!$F163) -> 399826.0372 | I163: =SUMIFS('Remboursement Mensualités'!E$14:E$133,'Remboursement Mensualités'!$F$14:$F$133,'Table rentabilité'!$F163) -> 59946038.39 | J163: =SUMIFS('Remboursement Mensualités'!B$14:B$133,'Remboursement Mensualités'!$F$14:$F$133,'Table rentabilité'!$F163) -> 11167575.46 | K163: 930631.2884
B164: Subvention | C164: 0 | D164: =C164*D162 -> 0 | F164: =IF(D167>10,"nb an insuffisant",IF(D167>=5,5,"-")) -> - | G164: =SUMIFS('Remboursement Mensualités'!C$14:C$133,'Remboursement Mensualités'!$F$14:$F$133,'Table rentabilité'!$F164) -> 0 | H164: =SUMIFS('Remboursement Mensualités'!D$14:D$133,'Remboursement Mensualités'!$F$14:$F$133,'Table rentabilité'!$F164) -> 0 | I164: =SUMIFS('Remboursement Mensualités'!E$14:E$133,'Remboursement Mensualités'!$F$14:$F$133,'Table rentabilité'!$F164) -> 0 | J164: =SUMIFS('Remboursement Mensualités'!B$14:B$133,'Remboursement Mensualités'!$F$14:$F$133,'Table rentabilité'!$F164) -> 0 | K164: 0
B165: Emprunt | C165: =100%-(C164+C163) -> 1 | D165: =D162*C165 -> 39025727 | F165: =IF(D167>10,"nb an insuffisant",IF(D167>=6,6,"-")) -> - | G165: =SUMIFS('Remboursement Mensualités'!C$14:C$133,'Remboursement Mensualités'!$F$14:$F$133,'Table rentabilité'!$F165) -> 0 | H165: =SUMIFS('Remboursement Mensualités'!D$14:D$133,'Remboursement Mensualités'!$F$14:$F$133,'Table rentabilité'!$F165) -> 0 | I165: =SUMIFS('Remboursement Mensualités'!E$14:E$133,'Remboursement Mensualités'!$F$14:$F$133,'Table rentabilité'!$F165) -> 0 | J165: =SUMIFS('Remboursement Mensualités'!B$14:B$133,'Remboursement Mensualités'!$F$14:$F$133,'Table rentabilité'!$F165) -> 0 | K165: =SUMIFS('Remboursement Mensualités'!C$14:C$133,'Remboursement Mensualités'!$F$14:$F$133,'Table rentabilité'!$F165) -> 0
B166: Taux de l'emprunt | D166: 0.07 | F166: =IF(D167>10,"nb an insuffisant",IF(D167>=7,7,"-")) -> - | G166: =SUMIFS('Remboursement Mensualités'!C$14:C$133,'Remboursement Mensualités'!$F$14:$F$133,'Table rentabilité'!$F166) -> 0 | H166: =SUMIFS('Remboursement Mensualités'!D$14:D$133,'Remboursement Mensualités'!$F$14:$F$133,'Table rentabilité'!$F166) -> 0 | I166: =SUMIFS('Remboursement Mensualités'!E$14:E$133,'Remboursement Mensualités'!$F$14:$F$133,'Table rentabilité'!$F166) -> 0 | J166: =SUMIFS('Remboursement Mensualités'!B$14:B$133,'Remboursement Mensualités'!$F$14:$F$133,'Table rentabilité'!$F166) -> 0 | K166: =SUMIFS('Remboursement Mensualités'!C$14:C$133,'Remboursement Mensualités'!$F$14:$F$133,'Table rentabilité'!$F166) -> 0
B167: Remboursement de l'emprunt (années) | D167: 4 | F167: =IF(D167>10,"nb an insuffisant",IF(D167>=8,8,"-")) -> - | G167: =SUMIFS('Remboursement Mensualités'!C$14:C$133,'Remboursement Mensualités'!$F$14:$F$133,'Table rentabilité'!$F167) -> 0 | H167: =SUMIFS('Remboursement Mensualités'!D$14:D$133,'Remboursement Mensualités'!$F$14:$F$133,'Table rentabilité'!$F167) -> 0 | I167: =SUMIFS('Remboursement Mensualités'!E$14:E$133,'Remboursement Mensualités'!$F$14:$F$133,'Table rentabilité'!$F167) -> 0 | J167: =SUMIFS('Remboursement Mensualités'!B$14:B$133,'Remboursement Mensualités'!$F$14:$F$133,'Table rentabilité'!$F167) -> 0 | K167: =SUMIFS('Remboursement Mensualités'!C$14:C$133,'Remboursement Mensualités'!$F$14:$F$133,'Table rentabilité'!$F167) -> 0
F168: =IF(D167>10,"nb an insuffisant",IF(D167>=9,9,"-")) -> - | G168: =SUMIFS('Remboursement Mensualités'!C$14:C$133,'Remboursement Mensualités'!$F$14:$F$133,'Table rentabilité'!$F168) -> 0 | H168: =SUMIFS('Remboursement Mensualités'!D$14:D$133,'Remboursement Mensualités'!$F$14:$F$133,'Table rentabilité'!$F168) -> 0 | I168: =SUMIFS('Remboursement Mensualités'!E$14:E$133,'Remboursement Mensualités'!$F$14:$F$133,'Table rentabilité'!$F168) -> 0 | J168: =SUMIFS('Remboursement Mensualités'!B$14:B$133,'Remboursement Mensualités'!$F$14:$F$133,'Table rentabilité'!$F168) -> 0 | K168: =SUMIFS('Remboursement Mensualités'!C$14:C$133,'Remboursement Mensualités'!$F$14:$F$133,'Table rentabilité'!$F168) -> 0
F169: =IF(D167>10,"nb an insuffisant",IF(D167>=10,"Année 10","-")) -> - | G169: =SUMIFS('Remboursement Mensualités'!C$14:C$133,'Remboursement Mensualités'!$F$14:$F$133,'Table rentabilité'!$F169) -> 0 | H169: =SUMIFS('Remboursement Mensualités'!D$14:D$133,'Remboursement Mensualités'!$F$14:$F$133,'Table rentabilité'!$F169) -> 0 | I169: =SUMIFS('Remboursement Mensualités'!E$14:E$133,'Remboursement Mensualités'!$F$14:$F$133,'Table rentabilité'!$F169) -> 0 | J169: =SUMIFS('Remboursement Mensualités'!B$14:B$133,'Remboursement Mensualités'!$F$14:$F$133,'Table rentabilité'!$F169) -> 0 | K169: =SUMIFS('Remboursement Mensualités'!C$14:C$133,'Remboursement Mensualités'!$F$14:$F$133,'Table rentabilité'!$F169) -> 0
F170: TOTAL | G170: =SUM(G160:G169) -> 39025727 | H170: =SUM(H160:H169) -> 5644574.845 | I170: =SUM(I160:I169) -> 959281613.6 | J170: =SUM(J160:J169) -> 44670301.85 | K170: =SUM(K160:K169) -> 3722525.154
B173: Ressources et Financement des investissements
B175: RESULTAT BRUT D'EXPLOITATION (EBE)
B176: Désignation / Durée (années) | C176: 0 | D176: 1 | E176: 2 | F176: 3 | G176: 4 | H176: 5 | I176: 6 | J176: 7 | K176: 8 | L176: 9 | M176: Total
B177: Recettes | D177: =F137 -> 21321300 | E177: =D177+($K$133*D177) -> 21534513 | F177: =E177+($K$133*E177) -> 21749858.13 | G177: =F177+($K$133*F177) -> 21967356.71 | H177: 22187030.28 | I177: 22408900.58 | J177: 22632989.59 | K177: 22859319.48 | L177: 23087912.68 | M177: =SUM(C177:L177) -> 199749180.4
B178: Dépenses | D178: =F110 -> 6969300 | E178: =D178+(D178*$L$101) -> 7038993 | F178: =E178+(E178*$L$101) -> 7109382.93 | G178: =F178+(F178*$L$101) -> 7180476.759 | H178: 7252281.527 | I178: 7324804.342 | J178: 7398052.386 | K178: 7472032.909 | L178: 7546753.239 | M178: =SUM(C178:L178) -> 65292077.09
B179: Amortissements | C179: 0 | D179: =$G$128 -> 2574786.603 | E179: =$G$128 -> 2574786.603 | F179: 2574786.603 | G179: 2574786.603 | H179: 2574786.603 | I179: 2574786.603 | J179: 2574786.603 | K179: 2574786.603 | L179: 2574786.603 | M179: 23173079.43
B180: Remboursement emprunt | C180: 0 | D180: =IFERROR(INDEX($J$160:$J$169,MATCH(D176,$F$160:$F$169,0)),0) -> 11167575.46 | E180: =IFERROR(INDEX($J$160:$J$169,MATCH(E176,$F$160:$F$169,0)),0) -> 11167575.46 | F180: 11167575.46 | G180: 11167575.46 | H180: 0 | I180: 0 | J180: 0 | K180: 0 | L180: 0 | M180: 44670301.85
B181: Bénéfice avant impôts | C181: 0 | D181: =D177-SUM(D178:D180) -> 609637.9354 | E181: =E177-SUM(E178:E180) -> 753157.9354 | F181: 898113.1354 | G181: 1044517.887 | H181: 12359962.15 | I181: 12509309.64 | J181: 12660150.6 | K181: 12812499.97 | L181: 12966372.84 | M181: 66613722.08
B182: Impôts sur le bénéfice | C182: 0 | D182: =IF(D181<0,0,0.3*D181) -> 182891.3806 | E182: =IF(E181<0,0,0.3*E181) -> 225947.3806 | F182: 269433.9406 | G182: 313355.3662 | H182: 3707988.644 | I182: 3752792.891 | J182: 3798045.179 | K182: 3843749.991 | L182: 3889911.851 | M182: 19984116.62
B183: Bénéfice après impôts | C183: 0 | D183: =D181-D182 -> 426746.5548 | E183: =E181-E182 -> 527210.5548 | F183: 628679.1948 | G183: 731162.5212 | H183: 8651973.504 | I183: 8756516.745 | J183: 8862105.419 | K183: 8968749.979 | L183: 9076460.985 | M183: 46629605.46
B184: Trésorerie | C184: =C177-C178 -> 0 | D184: =C184+D183 -> 426746.5548 | E184: 953957.1096 | F184: =E184+F183 -> 1582636.304 | G184: 2313798.826 | H184: 10965772.33 | I184: 19722289.07 | J184: 28584394.49 | K184: 37553144.47 | L184: 46629605.46 | M184: 148732344.6
B185: Cash Flows | C185: 0 | D185: =D183+D180-($H$170/$D$167) -> 10183178.3 | E185: 10283642.3 | F185: 10385110.94 | G185: 10487594.27 | H185: 7240829.792 | I185: 7345373.034 | J185: 7450961.707 | K185: 7557606.268 | L185: 7665317.274 | M185: 78599613.9
B186: Cash Flows cumulés | C186: =-C178 -> 0 | D186: =C186+D185 -> 10183178.3 | E186: =D186+E185 -> 20466820.61 | F186: =E186+F185 -> 30851931.55 | G186: 41339525.83 | H186: 48580355.62 | I186: 55925728.65 | J186: 63376690.36 | K186: 70934296.63 | L186: 78599613.9 | M186: 420258141.5
B189: Indicateurs économiques
B191: VAN | C191: =NPV(F191,IF(D176<=H191,D185,0),IF(E176<=H191,E185,0),IF(F176<=H191,F185,0),IF(G176<=H191,G185,0),IF(H176<=H191,H185,0),IF(I176<=H191,I185,0),IF(J176<=H191,J185,0),IF(K176<=H191,K185,0),IF(L176<=H191,L185,0))-D160 -> 24105610.53 | D191: FCFA | E191: Taux d'actualisation | F191: 0.05 | G191: Durée VAN (ans) | H191: 9 | N191: =-D160+IF(H191>=D176,(D183+D180-H170/D167)*((1+F191)^-1),0)+IF(H191>=E176,(E183+E180-H170/D167)*((1+F191)^-2),0)+IF(H191>=F176,(F183+F180-H170/D167)*((1+F191)^-3),0)+IF(H191>=G176,(G183+G180-H170/D167)*((1+F191)^-4),0)+IF(H191>=H176,(H183+H180-H170/D167)*((1+F191)^-5),0)+IF(H191>=I176,(I183+I180-H170/D167)*((1+F191)^-6),0)+IF(H191>=J176,(J183+J180-H170/D167)*((1+F191)^-7),0)+IF(H191>=K176,(K183+K180-H170/D167)*((1+F191)^-8),0)+IF(H191>=L176,(L183+L180-H170/D167)*((1+F191)^-9),0) -> 24105610.53 | O191: calcul VAN
B192: TRI | C192: =IRR(N192:W192) -> 0.1856779286 | N192: =-D160 -> -39025727 | O192: =IF(D176<=H191,D185,0) -> 10183178.3 | P192: =IF(E176<=H191,E185,0) -> 10283642.3 | Q192: =IF(F176<=H191,F185,0) -> 10385110.94 | R192: =IF(G176<=H191,G185,0) -> 10487594.27 | S192: =IF(H176<=H191,H185,0) -> 7240829.792 | T192: =IF(I176<=H191,I185,0) -> 7345373.034 | U192: =IF(J176<=H191,J185,0) -> 7450961.707 | V192: =IF(K176<=H191,K185,0) -> 7557606.268 | W192: =IF(L176<=H191,L185,0) -> 7665317.274
B193: RSI | C193: =SUM(O192:W192)/D160 -> 2.014046116 | D193: ="Pour 1000 CFA investis, on récupère "&ROUND(N193,0)&" CFA" -> Pour 1000 CFA investis, on récupère 1014 CFA | N193: =(C193-1)*1000 -> 1014.046116
B194: DRCI | C194: =N194+(-P194/(O194-P194)) ->  | D194: ="Le délai de récupération est de "&ROUNDDOWN(C194,0)&" ans et "&ROUNDDOWN((C194-ROUNDDOWN(C194,0))*12,0)&" mois" ->  | N194: =IF(AND(L186<0,L176<=H191),L176,IF(AND(K186<0,K176<=H191),K176,IF(AND(J186<0,J176<=H191),J176,IF(AND(I186<0,I176<=H191),I176,IF(AND(H186<0,H176<=H191),H176,IF(AND(G186<0,G176<=H191),G176,IF(AND(F186<0,F176<=H191),F176,IF(AND(E186<0,E176<=H191),E176,IF(AND(D186<0,D176<=H191),D176,IF(AND(C186<0,C176<=H191),C176)))))))))) -> FALSE | O194: =INDEX(C186:L186,MATCH(INDEX(C176:L176,MATCH(P194,C186:L186,0))+1,C176:L176,0)) ->  | P194: =IF(AND(L186<0,L176<=H191),L186,IF(AND(K186<0,K176<=H191),K186,IF(AND(J186<0,J176<=H191),J186,IF(AND(I186<0,I176<=H191),I186,IF(AND(H186<0,H176<=H191),H186,IF(AND(G186<0,G176<=H191),G186,IF(AND(F186<0,F176<=H191),F186,IF(AND(E186<0,E176<=H191),E186,IF(AND(D186<0,D176<=H191),D186,IF(AND(C186<0,C176<=H191),C186)))))))))) -> FALSE
B195: DSCR | C195: =(D177-D178)/(D180) -> 1.28514914

Sheet Remboursement Mensualités (hidden)
A1: Remboursement de prêt
A2: Taux annuel | B2: ='Table rentabilité'!D166 -> 0.07
A3: Capital emprunté | B3: ='Table rentabilité'!D165 -> 39025727
A4: Durée du prêt (en année) | B4: ='Table rentabilité'!D167 -> 4 | C4: =B4*12 -> 48
A5: Mensualité à régler | B5: =-PMT((1+B2)^(1/12)-1,B4*12,B3) -> 930631.2884 | C5: Formule mensualité | D5: =-VPM((1+B2)^(1/12)-1;B4*12;B3)
A7: Décomposition de la mensualité
A8: Remboursement du principal | B8: =-PPMT((1+B2)^(1/12)-1,1,B4*12,B3) -> 709974.1541 | C8: Formule principal | D8: =-PRINCPER((1+B2)^(1/12)-1;1;B4*12;B3)
A9: Remboursement des interêts | B9: =-IPMT((1+B2)^(1/12)-1,1,B4*12,B3) -> 220657.1343 | C9: Formule intérêt | D9: =-INTPER((1+B2)^(1/12)-1;1;B4*12;B3)
A12: Dans les formules ci-dessous Taux de période = TP = (1+$B$2)^(1/12)-1
A13: Périodes | B13: Mensualité | C13: Capital | D13: Intérêts | E13: Reste (ou résiduel) | F13: Années
A14: =IF(B4<>0,1,"-") -> 1 | B14: =IF(A14<>"-",C14+D14,"") -> 930631.2884 | C14: =IF(A14<>"-",-PPMT((1+$B$2)^(1/12)-1,A14,$B$4*12,$B$3),"") -> 709974.1541 | D14: =IF(A14<>"-",-IPMT((1+$B$2)^(1/12)-1,A14,$B$4*12,$B$3),"") -> 220657.1343 | E14: =IF(A14<>"-",$B$3+CUMPRINC((1+$B$2)^(1/12)-1,$B$4*12,$B$3,1,A14,0),"") -> 38315752.85 | F14: =IF(A14<>"-",1,"") -> 1 | G14: =IF(A14<>"-",1,"") -> 1
A15: =IF(AND($B$4<>0,A14<$C$4),A14+1,"-") -> 2 | B15: =IF(A15<>"-",C15+D15,"") -> 930631.2884 | C15: =IF(A15<>"-",-PPMT((1+$B$2)^(1/12)-1,A15,$B$4*12,$B$3),"") -> 713988.4512 | D15: =IF(A15<>"-",-IPMT((1+$B$2)^(1/12)-1,A15,$B$4*12,$B$3),"") -> 216642.8372 | E15: =IF(A15<>"-",$B$3+CUMPRINC((1+$B$2)^(1/12)-1,$B$4*12,$B$3,1,A15,0),"") -> 37601764.39 | F15: =IF(A15<>"-",IF(G14<G15,F14,F14+1),"") -> 1 | G15: =IF(A15="-","",IF(G14<12,G14+1,1)) -> 2
A16: =IF(AND($B$4<>0,A15<$C$4),A15+1,"-") -> 3 | B16: 930631.2884 | C16: 718025.4457 | D16: 212605.8427 | E16: 36883738.95 | F16: =IF(A16<>"-",IF(G15<G16,F15,F15+1),"") -> 1 | G16: =IF(A16="-","",IF(G15<12,G15+1,1)) -> 3
A17: 4 | B17: 930631.2884 | C17: 722085.266 | D17: 208546.0224 | E17: 36161653.68 | F17: 1 | G17: 4
A18: 5 | B18: 930631.2884 | C18: 726168.0411 | D18: 204463.2474 | E18: 35435485.64 | F18: 1 | G18: 5
A19: 6 | B19: 930631.2884 | C19: 730273.9007 | D19: 200357.3877 | E19: 34705211.74 | F19: 1 | G19: 6
A20: 7 | B20: 930631.2884 | C20: 734402.9756 | D20: 196228.3129 | E20: 33970808.77 | F20: 1 | G20: 7
A21: 8 | B21: 930631.2884 | C21: 738555.3968 | D21: 192075.8917 | E21: 33232253.37 | F21: 1 | G21: 8
A22: 9 | B22: 930631.2884 | C22: 742731.2963 | D22: 187899.9921 | E22: 32489522.07 | F22: 1 | G22: 9
A23: 10 | B23: 930631.2884 | C23: 746930.8071 | D23: 183700.4814 | E23: 31742591.27 | F23: 1 | G23: 10
A24: 11 | B24: 930631.2884 | C24: 751154.0625 | D24: 179477.226 | E24: 30991437.2 | F24: 1 | G24: 11
A25: 12 | B25: 930631.2884 | C25: 755401.1967 | D25: 175230.0917 | E25: 30236036.01 | F25: 1 | G25: 12
A26: 13 | B26: 930631.2884 | C26: 759672.3449 | D26: 170958.9435 | E26: 29476363.66 | F26: 2 | G26: 1
A27: 14 | B27: 930631.2884 | C27: 763967.6428 | D27: 166663.6456 | E27: 28712396.02 | F27: 2 | G27: 2
A28: 15 | B28: 930631.2884 | C28: 768287.2269 | D28: 162344.0615 | E28: 27944108.79 | F28: 2 | G28: 3
A29: 16 | B29: 930631.2884 | C29: 772631.2346 | D29: 158000.0538 | E29: 27171477.56 | F29: 2 | G29: 4
A30: 17 | B30: 930631.2884 | C30: 776999.8039 | D30: 153631.4845 | E30: 26394477.75 | F30: 2 | G30: 5
A31: 18 | B31: 930631.2884 | C31: 781393.0738 | D31: 149238.2146 | E31: 25613084.68 | F31: 2 | G31: 6
A32: 19 | B32: 930631.2884 | C32: 785811.1838 | D32: 144820.1046 | E32: 24827273.5 | F32: 2 | G32: 7
A33: 20 | B33: 930631.2884 | C33: 790254.2745 | D33: 140377.0139 | E33: 24037019.22 | F33: 2 | G33: 8
A34: 21 | B34: 930631.2884 | C34: 794722.4871 | D34: 135908.8014 | E34: 23242296.73 | F34: 2 | G34: 9
A35: 22 | B35: 930631.2884 | C35: 799215.9636 | D35: 131415.3249 | E35: 22443080.77 | F35: 2 | G35: 10
A36: 23 | B36: 930631.2884 | C36: 803734.8468 | D36: 126896.4416 | E36: 21639345.92 | F36: 2 | G36: 11
A37: 24 | B37: 930631.2884 | C37: 808279.2805 | D37: 122352.0079 | E37: 20831066.64 | F37: 2 | G37: 12
A38: 25 | B38: 930631.2884 | C38: 812849.4091 | D38: 117781.8794 | E38: 20018217.23 | F38: 3 | G38: 1
A39: 26 | B39: 930631.2884 | C39: 817445.3778 | D39: 113185.9106 | E39: 19200771.86 | F39: 3 | G39: 2
A40: 27 | B40: 930631.2884 | C40: 822067.3328 | D40: 108563.9556 | E40: 18378704.52 | F40: 3 | G40: 3
A41: 28 | B41: 930631.2884 | C41: 826715.421 | D41: 103915.8674 | E41: 17551989.1 | F41: 3 | G41: 4
A42: 29 | B42: 930631.2884 | C42: 831389.7902 | D42: 99241.49822 | E42: 16720599.31 | F42: 3 | G42: 5
A43: 30 | B43: 930631.2884 | C43: 836090.589 | D43: 94540.69947 | E43: 15884508.72 | F43: 3 | G43: 6
A44: 31 | B44: 930631.2884 | C44: 840817.9667 | D44: 89813.32173 | E44: 15043690.76 | F44: 3 | G44: 7
A45: 32 | B45: 930631.2884 | C45: 845572.0737 | D45: 85059.2147 | E45: 14198118.68 | F45: 3 | G45: 8
A46: 33 | B46: 930631.2884 | C46: 850353.0612 | D46: 80278.22726 | E46: 13347765.62 | F46: 3 | G46: 9
A47: 34 | B47: 930631.2884 | C47: 855161.081 | D47: 75470.20742 | E47: 12492604.54 | F47: 3 | G47: 10
A48: 35 | B48: 930631.2884 | C48: 859996.2861 | D48: 70635.00234 | E48: 11632608.25 | F48: 3 | G48: 11
A49: 36 | B49: 930631.2884 | C49: 864858.8301 | D49: 65772.4583 | E49: 10767749.42 | F49: 3 | G49: 12
A50: 37 | B50: 930631.2884 | C50: 869748.8677 | D50: 60882.42074 | E50: 9898000.556 | F50: 4 | G50: 1
A51: 38 | B51: 930631.2884 | C51: 874666.5542 | D51: 55964.73419 | E51: 9023334.002 | F51: 4 | G51: 2
A52: 39 | B52: 930631.2884 | C52: 879612.0461 | D52: 51019.24233 | E52: 8143721.956 | F52: 4 | G52: 3
A53: 40 | B53: 930631.2884 | C53: 884585.5005 | D53: 46045.78793 | E53: 7259136.456 | F53: 4 | G53: 4
A54: 41 | B54: 930631.2884 | C54: 889587.0755 | D54: 41044.21291 | E54: 6369549.38 | F54: 4 | G54: 5
A55: 42 | B55: 930631.2884 | C55: 894616.9302 | D55: 36014.35825 | E55: 5474932.45 | F55: 4 | G55: 6
A56: 43 | B56: 930631.2884 | C56: 899675.2244 | D56: 30956.06406 | E56: 4575257.225 | F56: 4 | G56: 7
A57: 44 | B57: 930631.2884 | C57: 904762.1189 | D57: 25869.16954 | E57: 3670495.107 | F57: 4 | G57: 8
A58: 45 | B58: 930631.2884 | C58: 909877.7755 | D58: 20753.51298 | E58: 2760617.331 | F58: 4 | G58: 9
A59: 46 | B59: 930631.2884 | C59: 915022.3567 | D59: 15608.93175 | E59: 1845594.974 | F59: 4 | G59: 10
A60: 47 | B60: 930631.2884 | C60: 920196.0261 | D60: 10435.26231 | E60: 925398.9482 | F60: 4 | G60: 11
A61: 48 | B61: 930631.2884 | C61: 925398.9482 | D61: 5232.340195 | E61: 0 | F61: 4 | G61: 12
A62: -
A63: -
A64: -
A65: -
A66: -
A67: -
A68: -
A69: -
A70: -
A71: -
A72: -
A73: -
A74: -
A75: -
A76: -
A77: -
A78: -
A79: - | B79: =IF(A79<>"-",C79+D79,"") ->  | C79: =IF(A79<>"-",-PPMT((1+$B$2)^(1/12)-1,A79,$B$4*12,$B$3),"") ->  | D79: =IF(A79<>"-",-IPMT((1+$B$2)^(1/12)-1,A79,$B$4*12,$B$3),"") ->  | E79: =IF(A79<>"-",$B$3+CUMPRINC((1+$B$2)^(1/12)-1,$B$4*12,$B$3,1,A79,0),"") -> 
A80: =IF(AND($B$4<>0,A79<$C$4),A79+1,"-") -> - | F80: =IF(A80<>"-",IF(G79<G80,F79,F79+1),"") ->  | G80: =IF(A80="-","",IF(G79<12,G79+1,1)) -> 
A81: -
A82: -
A83: -
A84: -
A85: -
A86: -
A87: -
A88: -
A89: -
A90: -
A91: -
A92: -
A93: -
A94: -
A95: -
A96: -
A97: -
A98: -
A99: -
A100: -
A101: -
A102: -
A103: -
A104: -
A105: -
A106: -
A107: -
A108: -
A109: -
A110: -
A111: -
A112: -
A113: -
A114: -
A115: -
A116: -
A117: -
A118: -
A119: -
A120: -
A121: -
A122: -
A123: -
A124: -
A125: -
A126: -
A127: -
A128: -
A129: -
A130: -
A131: -
A132: -
A133: -

Sheet investissement réel
B3: Désignation | C3: Quantité | D3: Prix unitaire TTC | E3: Montant Total TTC | F3: Durée de vie (an) | G3: Amortissement annuel
B4: Pompe solaire (55 KW) | C4: 1 | D4: 5824300 | E4: =C4*D4 -> 5824300 | F4: 10 | G4: =E4/F4 -> 582430
B5: accessoirs pompe | C5: 1 | D5: 2231250 | E5: 2231250 | F5: 10 | G5: 223125
B6: Champs solaire (81,9 KWc) | C6: 1 | D6: 17541678 | E6: 17541678 | F6: 25 | G6: 701667.12
B7: cloture grillage | C7: 1 | D7: 2493750 | E7: 2493750 | F7: 10 | G7: 249375
B8: Genie civil (structures modules) | C8: 1 | D8: 3187500 | E8: 3187500 | F8: 15 | G8: 212500
B9: conditionneur d'energie + protection | C9: 1 | D9: 3252999 | E9: 3252999 | F9: 10 | G9: 325299.9
B10: accessoirs cablages + protection | C10: 1 | D10: 3340625 | E10: =C10*D10 -> 3340625 | F10: 15 | G10: =E10/F10 -> 222708.3333
B11: ligne d'aspiration (PeHD) | C11: 1 | D11: 193625 | E11: =C11*D11 -> 193625 | F11: 20 | G11: =E11/F11 -> 9681.25
B12: ligne de refoulement (PeHD) | C12: 1 | D12: 960000 | E12: 960000 | F12: 20 | G12: 48000
E13: 0
E14: 0
E15: 0
E16: =C16*D16 -> 0
E17: 0
E18: 0
E19: 0
E20: 0
E21: =C21*D21 -> 0
E22: 0
B23: TOTAL (F CFA) | E23: =SUM(E4:E22) -> 39025727 | G23: =SUM(G4:G22) -> 2574786.603
